Department Family,Entity,Allocation Date,Expenses Type,Expense Area,Supplier,Transaction Number,Amount in Sterling,
Government Equalities Office,Equality and Human Rights Commission,01/11/2011,Accommodation,Corporate Management - Finance,Expotel,Hotel Accommodation,685.10,
Government Equalities Office,Equality and Human Rights Commission,01/11/2011,Accommodation,Wales Director,Expotel,Hotel Accommodation,689.06,
Government Equalities Office,Equality and Human Rights Commission,01/11/2011,Accommodation,Regulation - Foresight,Expotel,Hotel Accommodation,767.31,
Government Equalities Office,Equality and Human Rights Commission,01/11/2011,Accommodation,Regulation - Policy and Ops - Private,Expotel,Hotel Accommodation,860.21,
Government Equalities Office,Equality and Human Rights Commission,01/11/2011,Accommodation,Regulation - Policy and Ops - Public,Expotel,Hotel Accommodation,"1,130.19",
Government Equalities Office,Equality and Human Rights Commission,01/11/2011,Accommodation,Corporate Management - People,Expotel,Hotel Accommodation,"1,393.39",
Government Equalities Office,Equality and Human Rights Commission,08/11/2011,Ad hoc 3rd Party Service,Corporate Management - ICT,Bottomline Technologies,iPOS Invoice 42770,600.00,
Government Equalities Office,Equality and Human Rights Commission,17/11/2011,Agency Staff,Corporate Management - Corporate Governance,Venn Group,iPOS Invoice 42818,528.26,
Government Equalities Office,Equality and Human Rights Commission,08/11/2011,Agency Staff,Intelligence & Engagement - External Affairs,Xchangeteam Ltd,iPOS Invoice 42704,662.40,
Government Equalities Office,Equality and Human Rights Commission,08/11/2011,Agency Staff,Intelligence & Engagement - External Affairs,Xchangeteam Ltd,iPOS Invoice 42705,662.40,
Government Equalities Office,Equality and Human Rights Commission,08/11/2011,Agency Staff,Intelligence & Engagement - External Affairs,Xchangeteam Ltd,iPOS Invoice 42706,662.40,
Government Equalities Office,Equality and Human Rights Commission,08/11/2011,Agency Staff,Intelligence & Engagement - External Affairs,Reed Employment,iPOS Invoice 42762,751.10,
Government Equalities Office,Equality and Human Rights Commission,01/11/2011,Agency Staff,Corporate Management - Finance,Hudson Global Resources Ltd,iPOS Invoice 42669,855.58,
Government Equalities Office,Equality and Human Rights Commission,17/11/2011,Agency Staff,Intelligence & Engagement - Stakeholder Relations,Morgan Law Partners LLP,iPOS Invoice 42845,948.60,
Government Equalities Office,Equality and Human Rights Commission,01/11/2011,Agency Staff,Intelligence & Engagement - Stakeholder Relations,Morgan Law Partners LLP,iPOS Invoice 42598,"1,024.49",
Government Equalities Office,Equality and Human Rights Commission,01/11/2011,Agency Staff,Corporate Management - ICT,Badenoch & Clark,iPOS Invoice 42656,"1,052.72",
Government Equalities Office,Equality and Human Rights Commission,08/11/2011,Agency Staff,Corporate Management - Finance,Badenoch & Clark,iPOS Invoice 42784,"1,308.42",
Government Equalities Office,Equality and Human Rights Commission,22/11/2011,Agency Staff,Corporate Management - Business Planning,Reed Employment,iPOS Invoice 42935,"1,872.00",
Government Equalities Office,Equality and Human Rights Commission,22/11/2011,Agency Staff,Corporate Management - Business Planning,Reed Employment,iPOS Invoice 42936,"1,872.00",
Government Equalities Office,Equality and Human Rights Commission,08/11/2011,Agency Staff,Regulation - Foresight,Morgan Hunt UK Ltd,iPOS Invoice 42716,"1,918.98",
Government Equalities Office,Equality and Human Rights Commission,08/11/2011,Agency Staff,Regulation - Foresight,Morgan Hunt UK Ltd,iPOS Invoice 42758,"1,918.98",
Government Equalities Office,Equality and Human Rights Commission,08/11/2011,Agency Staff,Regulation - Foresight,Morgan Hunt UK Ltd,iPOS Invoice 42759,"1,918.98",
Government Equalities Office,Equality and Human Rights Commission,17/11/2011,Agency Staff,Regulation - Foresight,Morgan Hunt UK Ltd,iPOS Invoice 42829,"1,918.98",
Government Equalities Office,Equality and Human Rights Commission,30/11/2011,Agency Staff,Corporate Management - Corporate Governance,Venn Group,iPOS Invoice 42981,"2,113.06",
Government Equalities Office,Equality and Human Rights Commission,01/11/2011,Agency Staff,Corporate Management - Finance,Hudson Global Resources Ltd,iPOS Invoice 42667,"2,138.94",
Government Equalities Office,Equality and Human Rights Commission,01/11/2011,Agency Staff,Corporate Management - Finance,Hudson Global Resources Ltd,iPOS Invoice 42668,"2,138.94",
Government Equalities Office,Equality and Human Rights Commission,01/11/2011,Agency Staff,Corporate Management - Finance,Hudson Global Resources Ltd,iPOS Invoice 42670,"2,138.94",
Government Equalities Office,Equality and Human Rights Commission,01/11/2011,Agency Staff,Corporate Management - Finance,Hudson Global Resources Ltd,iPOS Invoice 42671,"2,138.94",
Government Equalities Office,Equality and Human Rights Commission,01/11/2011,Agency Staff,Corporate Management - Finance,Hudson Global Resources Ltd,iPOS Invoice 42672,"2,138.94",
Government Equalities Office,Equality and Human Rights Commission,22/11/2011,Agency Staff,Corporate Management - Finance,Hudson Global Resources Ltd,iPOS Invoice 42930,"2,138.94",
Government Equalities Office,Equality and Human Rights Commission,22/11/2011,Agency Staff,Corporate Management - Finance,Hudson Global Resources Ltd,iPOS Invoice 42931,"2,138.94",
Government Equalities Office,Equality and Human Rights Commission,22/11/2011,Agency Staff,Corporate Management - Finance,Hudson Global Resources Ltd,iPOS Invoice 42932,"2,138.94",
Government Equalities Office,Equality and Human Rights Commission,22/11/2011,Agency Staff,Corporate Management - Finance,Hudson Global Resources Ltd,iPOS Invoice 42933,"2,138.94",
Government Equalities Office,Equality and Human Rights Commission,08/11/2011,Agency Staff,Regulation - Policy and Ops - Private,Hudson Global Resources Ltd,iPOS Invoice 42708,"2,367.24",
Government Equalities Office,Equality and Human Rights Commission,01/11/2011,Agency Staff,Corporate Management - Corporate Governance,Venn Group,iPOS Invoice 42654,"2,641.32",
Government Equalities Office,Equality and Human Rights Commission,01/11/2011,Agency Staff,Corporate Management - Corporate Governance,Venn Group,iPOS Invoice 42655,"2,641.32",
Government Equalities Office,Equality and Human Rights Commission,17/11/2011,Agency Staff,Corporate Management - Corporate Governance,Venn Group,iPOS Invoice 42819,"2,641.32",
Government Equalities Office,Equality and Human Rights Commission,30/11/2011,Agency Staff,Corporate Management - Corporate Governance,Venn Group,iPOS Invoice 42980,"2,641.32",
Government Equalities Office,Equality and Human Rights Commission,22/11/2011,Agency Staff,Regulation - Foresight,Morgan Hunt UK Ltd,iPOS Invoice 42956,"2,686.57",
Government Equalities Office,Equality and Human Rights Commission,01/11/2011,Agency Staff,Corporate Management - Finance,Hudson Global Resources Ltd,iPOS Invoice 42673,"3,104.88",
Government Equalities Office,Equality and Human Rights Commission,01/11/2011,Agency Staff,Corporate Management - Finance,Hudson Global Resources Ltd,iPOS Invoice 42674,"3,104.88",
Government Equalities Office,Equality and Human Rights Commission,01/11/2011,Agency Staff,Corporate Management - Finance,Hudson Global Resources Ltd,iPOS Invoice 42675,"3,104.88",
Government Equalities Office,Equality and Human Rights Commission,01/11/2011,Agency Staff,Corporate Management - Finance,Hudson Global Resources Ltd,iPOS Invoice 42676,"3,104.88",
Government Equalities Office,Equality and Human Rights Commission,01/11/2011,Agency Staff,Corporate Management - Finance,Hudson Global Resources Ltd,iPOS Invoice 42677,"3,104.88",
Government Equalities Office,Equality and Human Rights Commission,01/11/2011,Agency Staff,Corporate Management - Finance,Hudson Global Resources Ltd,iPOS Invoice 42678,"3,104.88",
Government Equalities Office,Equality and Human Rights Commission,30/11/2011,Agency Staff,Corporate Management - People,Edenbrown,iPOS Invoice 42968,"3,511.32",
Government Equalities Office,Equality and Human Rights Commission,17/11/2011,Agency Staff,Regulation - Disability Programme,Penna,iPOS Invoice 42793,"5,265.00",
Government Equalities Office,Equality and Human Rights Commission,22/11/2011,Agency Staff,Corporate Management - People,Digby Morgan Consulting Ltd,iPOS Invoice 42915,"5,830.50",
Government Equalities Office,Equality and Human Rights Commission,22/11/2011,Agency Staff,Intelligence & Engagement - Group Director,Veredus,iPOS Invoice 42925,"5,865.00",
Government Equalities Office,Equality and Human Rights Commission,30/11/2011,Agency Staff,Intelligence & Engagement - Group Director,Veredus,iPOS Invoice 43000,"5,865.00",
Government Equalities Office,Equality and Human Rights Commission,17/11/2011,Agency Staff,Regulation - Disability Programme,Penna,iPOS Invoice 42792,"8,073.00",
Government Equalities Office,Equality and Human Rights Commission,17/11/2011,Agency Staff,Corporate Management - Finance,Methods Consulting,iPOS Invoice 42867,"8,386.06",
Government Equalities Office,Equality and Human Rights Commission,17/11/2011,Agency Staff,Corporate Management - People,Digby Morgan Consulting Ltd,iPOS Invoice 42721,"10,910.22",
Government Equalities Office,Equality and Human Rights Commission,17/11/2011,Agency Staff,Intelligence & Engagement - Group Director,Veredus,iPOS Invoice 42890,"11,143.50",
Government Equalities Office,Equality and Human Rights Commission,08/11/2011,Agency Staff,Corporate Management - People,Penna,iPOS Invoice 42771,"11,640.00",
Government Equalities Office,Equality and Human Rights Commission,01/11/2011,Agency Staff,Intelligence & Engagement - Group Director,Veredus,iPOS Invoice 42679,"11,730.00",
Government Equalities Office,Equality and Human Rights Commission,08/11/2011,Agency Staff,Corporate Management - People,Resource Innovations,iPOS Invoice 42755,"12,420.00",
Government Equalities Office,Equality and Human Rights Commission,22/11/2011,Agency Staff,Corporate Management - Finance,Veredus,iPOS Invoice 42929,"14,490.00",
Government Equalities Office,Equality and Human Rights Commission,17/11/2011,Agency Staff,Corporate Management - People,Digby Morgan Consulting Ltd,iPOS Invoice 42862,"14,662.50",
Government Equalities Office,Equality and Human Rights Commission,30/11/2011,Agency Staff,Corporate Management - Group Director,Veredus,iPOS Invoice 42999,"17,100.00",
Government Equalities Office,Equality and Human Rights Commission,22/11/2011,Agency Staff,Intelligence & Engagement - External Affairs,Veredus,iPOS Invoice 42924,"17,760.00",
Government Equalities Office,Equality and Human Rights Commission,17/11/2011,Agency Staff,Corporate Management - People,Veredus,iPOS Invoice 42891,"17,940.00",
Government Equalities Office,Equality and Human Rights Commission,22/11/2011,Agency Staff,Corporate Management - Finance,Penna,iPOS Invoice 42951,"19,278.00",
Government Equalities Office,Equality and Human Rights Commission,30/11/2011,Agency Staff,Corporate Management - Finance,Veredus,iPOS Invoice 42923,"26,268.00",
Government Equalities Office,Equality and Human Rights Commission,23/11/2011,Alternative Formats,Regulation - Disability Programme,CDS Leeds,iPOS Invoice 42938,"1,383.20",
Government Equalities Office,Equality and Human Rights Commission,22/11/2011,Alternative Formats,Intelligence & Engagement - External Affairs,Testun Cyf,iPOS Invoice 42928,"1,783.39",
Government Equalities Office,Equality and Human Rights Commission,17/11/2011,Alternative Formats,Regulation - Disability Programme,Remark,iPOS Invoice 42797,"3,896.64",
Government Equalities Office,Equality and Human Rights Commission,08/11/2011,ATW - Agency/Staff Costs,Corporate Management - Finance,Linda Taylor Associates,iPOS Invoice 42707,503.28,
Government Equalities Office,Equality and Human Rights Commission,17/11/2011,ATW - Agency/Staff Costs,Corporate Management - Finance,Linda Taylor Associates,iPOS Invoice 42881,503.28,
Government Equalities Office,Equality and Human Rights Commission,22/11/2011,ATW - Agency/Staff Costs,Corporate Management - Finance,Linda Taylor Associates,iPOS Invoice 42954,503.28,
Government Equalities Office,Equality and Human Rights Commission,30/11/2011,ATW - Agency/Staff Costs,Corporate Management - Finance,Edenbrown,iPOS Invoice 42973,703.30,
Government Equalities Office,Equality and Human Rights Commission,08/11/2011,ATW - Agency/Staff Costs,Corporate Management - Finance,Edenbrown,iPOS Invoice 42710,705.89,
Government Equalities Office,Equality and Human Rights Commission,17/11/2011,ATW - Agency/Staff Costs,Corporate Management - Finance,Edenbrown,iPOS Invoice 42871,705.89,
Government Equalities Office,Equality and Human Rights Commission,30/11/2011,ATW - Agency/Staff Costs,Corporate Management - Finance,Edenbrown,iPOS Invoice 42969,751.44,
Government Equalities Office,Equality and Human Rights Commission,17/11/2011,ATW - Non Staff Expenditure,Corporate Management - Finance,Bee Communications,iPOS Invoice 42824,504.72,
Government Equalities Office,Equality and Human Rights Commission,17/11/2011,ATW - Non Staff Expenditure,Corporate Management - Finance,Bee Communications,iPOS Invoice 42795,537.48,
Government Equalities Office,Equality and Human Rights Commission,08/11/2011,ATW - Non Staff Expenditure,Corporate Management - Finance,Gillian Croft,iPOS Invoice 42730,950.00,
Government Equalities Office,Equality and Human Rights Commission,08/11/2011,ATW - Non Staff Expenditure,Corporate Management - Finance,Ace Taxis,iPOS Invoice 42720,"1,169.40",
Government Equalities Office,Equality and Human Rights Commission,17/11/2011,ATW - Non Staff Expenditure,Corporate Management - Finance,Rachel Nickless,iPOS Invoice 42895,"2,285.95",
Government Equalities Office,Equality and Human Rights Commission,08/11/2011,Barristers Fees,Legal/Monitoring - Enforcement,Monica Carss-Frisk,iPOS Invoice 42780,936.00,
Government Equalities Office,Equality and Human Rights Commission,18/11/2011,Barristers Fees,Corporate Management - Corporate Governance,Gerry Facenna,iPOS Invoice 42803,"1,194.00",
Government Equalities Office,Equality and Human Rights Commission,08/11/2011,Barristers Fees,Legal/Monitoring - Enforcement,Faculty Services Limited,iPOS Invoice 42737,"1,200.00",
Government Equalities Office,Equality and Human Rights Commission,08/11/2011,Barristers Fees,Legal/Monitoring - Enforcement,Rabinder Singh QC,iPOS Invoice 42782,"2,000.40",
Government Equalities Office,Equality and Human Rights Commission,22/11/2011,Barristers Fees,Legal/Monitoring - Casework,Miss Catherine Casserley,iPOS Invoice 42906,"2,322.00",
Government Equalities Office,Equality and Human Rights Commission,17/11/2011,Barristers Fees,Legal/Monitoring - Casework,David Massarella,iPOS Invoice 42802,"2,376.00",
Government Equalities Office,Equality and Human Rights Commission,08/11/2011,Barristers Fees,Legal/Monitoring - Enforcement,Hanif Mussa,iPOS Invoice 42779,"2,520.00",
Government Equalities Office,Equality and Human Rights Commission,22/11/2011,Barristers Fees,Legal/Monitoring - Enforcement,Richard Gordon,iPOS Invoice 42885,"2,880.00",
Government Equalities Office,Equality and Human Rights Commission,30/11/2011,Barristers Fees,Regulation - Foresight,Jane Gordon,iPOS Invoice 43016,"3,780.00",
Government Equalities Office,Equality and Human Rights Commission,30/11/2011,Barristers Fees,Legal - Legal Policy,Eric Metcalf,iPOS Invoice 42976,"4,032.00",
Government Equalities Office,Equality and Human Rights Commission,22/11/2011,Barristers Fees,Legal/Monitoring - Casework,Robin Allen QC,iPOS Invoice 42907,"4,590.00",
Government Equalities Office,Equality and Human Rights Commission,01/11/2011,Barristers Fees,Legal/Monitoring - Enforcement,Geoffrey Robertson QC,iPOS Invoice 42661,"6,624.00",
Government Equalities Office,Equality and Human Rights Commission,01/11/2011,Barristers Fees,Legal/Monitoring - Enforcement,Richard Gordon,iPOS Invoice 42660,"7,200.00",
Government Equalities Office,Equality and Human Rights Commission,08/11/2011,Barristers Fees,Legal/Monitoring - Casework,Robin Allen QC,iPOS Invoice 42773,"8,280.00",
Government Equalities Office,Equality and Human Rights Commission,30/11/2011,Books,Corporate Management - Information Management,Dun & Bradstreet Ltd,iPOS Invoice 42995,549.60,
Government Equalities Office,Equality and Human Rights Commission,30/11/2011,BT Non Managed Services,Corporate Management - ICT,BT Onebillplus,iPOS Invoice 43007,"1,971.70",
Government Equalities Office,Equality and Human Rights Commission,30/11/2011,Chairs Pension Liability,Corporate Management - Finance,Home Office -Accounts Receiveable,iPOS Invoice 42681,"6,518.45",
Government Equalities Office,Equality and Human Rights Commission,01/11/2011,Chairs Pension Liability,Corporate Management - Finance,Home Office -Accounts Receiveable,iPOS Invoice 42857,"6,518.45",
Government Equalities Office,Equality and Human Rights Commission,17/11/2011,Childcare Voucher Scheme,Corporate Management - People,Accor Services,iPOS Invoice 42794,"4,617.81",
Government Equalities Office,Equality and Human Rights Commission,22/11/2011,Cleaning Services,Wales Director,Keith Brooks,iPOS Invoice 42921,945.00,
Government Equalities Office,Equality and Human Rights Commission,17/11/2011,Cleaning Services,Corporate Management - Buildings,Caledonian Office & Window Cleaning,iPOS Invoice 42785,"1,082.64",
Government Equalities Office,Equality and Human Rights Commission,23/11/2011,Client Support,Corporate Management - Group Director,Susie Lithman-Romeo,iPOS Invoice 42897,656.98,
Government Equalities Office,Equality and Human Rights Commission,17/11/2011,Client Support,Corporate Management - Group Director,Merrill Legal Solutions,iPOS Invoice 42801,780.12,
Government Equalities Office,Equality and Human Rights Commission,22/11/2011,Client Support,Corporate Management - Group Director,Merrill Legal Solutions,iPOS Invoice 42939,780.12,
Government Equalities Office,Equality and Human Rights Commission,30/11/2011,Client Support,Corporate Management - Group Director,Merrill Legal Solutions,iPOS Invoice 42991,780.12,
Government Equalities Office,Equality and Human Rights Commission,17/11/2011,Client Support,Corporate Management - Group Director,Merrill Legal Solutions,iPOS Invoice 42800,"2,030.76",
Government Equalities Office,Equality and Human Rights Commission,17/11/2011,Conciliation,Legal/Monitoring - Casework,Mediation Works,iPOS Invoice 42869,"4,051.20",
Government Equalities Office,Equality and Human Rights Commission,08/11/2011,Conference Set Up/Equipment Costs,Scotland - Director,Stuc Training Ltd,iPOS Invoice 42733,"2,265.00",
Government Equalities Office,Equality and Human Rights Commission,17/11/2011,Conference Set Up/Equipment Costs,Statutory Committee - Wales,Compass Group Services UK Ltd,iPOS Invoice 42836,"3,244.80",
Government Equalities Office,Equality and Human Rights Commission,01/11/2011,Conference Venue Costs,Statutory Committee - Wales,Expotel,Conference Booking,"1,333.84",
Government Equalities Office,Equality and Human Rights Commission,17/11/2011,Conference Venue Costs,Regulation - Policy and Ops - Public,British Educational Suppliers Association,iPOS Invoice 42830,"2,590.37",
Government Equalities Office,Equality and Human Rights Commission,08/11/2011,Conference Venue Costs,Regulation - Policy and Ops - Public,World Trade Group Ltd,iPOS Invoice 42728,"5,040.00",
Government Equalities Office,Equality and Human Rights Commission,01/11/2011,Conference Venue Costs,Scotland - Director,Expotel,Conference,"6,690.06",
Government Equalities Office,Equality and Human Rights Commission,17/11/2011,Corporate Membership Subscriptions,Corporate Management - Information Management,Royal Faculty of Procurators,iPOS Invoice 42898,903.00,
Government Equalities Office,Equality and Human Rights Commission,25/11/2011,Court Fees,Legal/Monitoring - Enforcement,"The Supreme Court of the United Kingdom,",iPOS Invoice 42998,800.00,
Government Equalities Office,Equality and Human Rights Commission,01/11/2011,Electricity,Corporate Management - Buildings,Prudential Prop Invest Manager,iPOS Invoice 42625,501.83,
Government Equalities Office,Equality and Human Rights Commission,30/11/2011,Electricity,Corporate Management - Buildings,BNP Paribas Real Estate,iPOS Invoice 43038,546.34,
Government Equalities Office,Equality and Human Rights Commission,08/11/2011,Electricity,Corporate Management - Buildings,Npower,iPOS Invoice 42749,"1,378.49",
Government Equalities Office,Equality and Human Rights Commission,01/11/2011,Electricity,Corporate Management - Buildings,Prudential Prop Invest Manager,iPOS Invoice 42624,"1,680.53",
Government Equalities Office,Equality and Human Rights Commission,01/11/2011,Electricity,Corporate Management - Buildings,Prudential Prop Invest Manager,iPOS Invoice 42623,"1,877.52",
Government Equalities Office,Equality and Human Rights Commission,08/11/2011,Electricity,Corporate Management - Buildings,DWP,iPOS Invoice 42756,"63,182.61",
Government Equalities Office,Equality and Human Rights Commission,01/11/2011,Electronic Subscriptions,Corporate Management - Information Management,The British Library,iPOS Invoice 42635,558.00,
Government Equalities Office,Equality and Human Rights Commission,30/11/2011,Electronic Subscriptions,Corporate Management - Information Management,Informa Ltd,iPOS Invoice 43022,"1,216.60",
Government Equalities Office,Equality and Human Rights Commission,30/11/2011,Electronic Subscriptions,Corporate Management - Information Management,Informa Ltd,iPOS Invoice 43020,"1,258.40",
Government Equalities Office,Equality and Human Rights Commission,01/11/2011,Events Venue Costs,Scotland - Director,Sense Scotland,iPOS Invoice 42680,"1,272.48",
Government Equalities Office,Equality and Human Rights Commission,01/11/2011,Events Venue Costs,Scotland - Director,Expotel,Conference,"1,660.06",
Government Equalities Office,Equality and Human Rights Commission,30/11/2011,External Printing,Commissioners Office,Hobs Reprographics,iPOS Invoice 42988,541.62,
Government Equalities Office,Equality and Human Rights Commission,30/11/2011,External Printing,Commissioners Office,Hobs Reprographics,iPOS Invoice 42990,575.52,
Government Equalities Office,Equality and Human Rights Commission,22/11/2011,Fit Out Costs,Corporate Management - Buildings,King Sturge LLP,iPOS Invoice 42960,"6,761.40",
Government Equalities Office,Equality and Human Rights Commission,08/11/2011,Franking Machine Rental,Corporate Management - Buildings,Neopost Finance Ltd Quarterly Rentals only,iPOS Invoice 42754,528.55,
Government Equalities Office,Equality and Human Rights Commission,25/11/2011,Grant Funding Program,Corporate Management - Grants Unit,Sheffield Domestic Abuse Forum,Phase 1 - S Grant (10% retention),"3,029.25",
Government Equalities Office,Equality and Human Rights Commission,25/11/2011,Grant Funding Program,Corporate Management - Grants Unit,Equality Network,Phase 2 - S Grant 01/10/2011,"4,648.68",
Government Equalities Office,Equality and Human Rights Commission,03/11/2011,Grant Funding Program,Corporate Managament - Grants,Southwark Law Centre,Legal Grant 2009/2011 10%,"6,000.00",
Government Equalities Office,Equality and Human Rights Commission,17/11/2011,Grant Funding Program,Corporate Management - Grants Unit,Torfaen Women's Aid,S Grant 01/07/2011 - 30/09/2011,"6,050.00",
Government Equalities Office,Equality and Human Rights Commission,03/11/2011,Grant Funding Program,Corporate Management - Grants Unit,The Rural Media Company,S Grant 01/07/2011 - 30/09/2011,"6,685.96",
Government Equalities Office,Equality and Human Rights Commission,03/11/2011,Grant Funding Program,Corporate Managament - Grants,Chesterfield Law Centre,A/R Grant 2009/2011 10%,"7,100.00",
Government Equalities Office,Equality and Human Rights Commission,25/11/2011,Grant Funding Program,Corporate Management - Grants Unit,LGBT Healthy Living Centre,Phase 2 - S Grant 01/07/2011,"7,621.00",
Government Equalities Office,Equality and Human Rights Commission,03/11/2011,Grant Funding Program,Corporate Managament - Grants,Royal Association for Deaf people (RAD),Legal Grant 2009/2011 10%,"7,650.00",
Government Equalities Office,Equality and Human Rights Commission,03/11/2011,Grant Funding Program,Corporate Managament - Grants,Chesterfield Law Centre,A/R Grant 01/01/2011,"7,983.00",
Government Equalities Office,Equality and Human Rights Commission,03/11/2011,Grant Funding Program,Corporate Management - Grants Unit,Bristol Next Link Domestic Abuse Services,S Grant 01/07/2011 - 30/09/2011,"8,657.00",
Government Equalities Office,Equality and Human Rights Commission,03/11/2011,Grant Funding Program,Corporate Managament - Grants,Southwark Law Centre,Legal C/W Grant 01/01/2011,"9,000.00",
Government Equalities Office,Equality and Human Rights Commission,03/11/2011,Grant Funding Program,Corporate Managament - Grants,Trafford Law Centre,Legal Grant 2009/2011 10%,"9,000.00",
Government Equalities Office,Equality and Human Rights Commission,03/11/2011,Grant Funding Program,Corporate Management - Grants Unit,Ethnic Alcohol Counselling in Hounslow,S Grant 01/10/2011 - 30/12/2011,"9,000.00",
Government Equalities Office,Equality and Human Rights Commission,11/11/2011,Grant Funding Program,Corporate Managament - Grants,Citizens Advice East Sussex (CAES),Phase 2 Legal Grant 01/07/11,"9,326.00",
Government Equalities Office,Equality and Human Rights Commission,03/11/2011,Grant Funding Program,Corporate Management - Grants Unit,National Youth Theatre of Great Britain,S Grant 01/10/2011 - 30/12/2011,"9,365.02",
Government Equalities Office,Equality and Human Rights Commission,11/11/2011,Grant Funding Program,Corporate Management - Grants Unit,Kingsway Health & Wellbeing Centre,S Grant 01/010/2011 - 31/12/2011,"9,409.00",
Government Equalities Office,Equality and Human Rights Commission,03/11/2011,Grant Funding Program,Corporate Managament - Grants,Castlemilk Law and Money Advice Centre,Legal Grant 2009/2011 10%,"9,660.50",
Government Equalities Office,Equality and Human Rights Commission,03/11/2011,Grant Funding Program,Corporate Management - Grants Unit,Family Matters,S Grant 01/07/2011 - 30/09/2011,"9,845.36",
Government Equalities Office,Equality and Human Rights Commission,03/11/2011,Grant Funding Program,Corporate Management - Grants Unit,Tyneside Rape Crisis Centre,S Grant 01/10/2011 - 30/12/2011,"9,897.98",
Government Equalities Office,Equality and Human Rights Commission,03/11/2011,Grant Funding Program,Corporate Management - Grants Unit,Solace Women�s Aid,S Grant 01/07/2011 - 30/09/2011,"9,997.00",
Government Equalities Office,Equality and Human Rights Commission,22/11/2011,Grant Funding Program,Corporate Managament - Grants,Bedford REC,Phase 2 Legal Grant 01/07/11,"9,998.00",
Government Equalities Office,Equality and Human Rights Commission,30/11/2011,Grant Funding Program,Corporate Managament - Grants,Wiltshire Law Centre,Phase 2 Legal Grant 01/07/11,"10,000.00",
Government Equalities Office,Equality and Human Rights Commission,30/11/2011,Grant Funding Program,Corporate Managament - Grants,Working Families,Phase 2 Legal Grant 01/07/11,"10,000.00",
Government Equalities Office,Equality and Human Rights Commission,25/11/2011,Grant Funding Program,Corporate Management - Grants Unit,Engender,Phase 2 - S Grant 01/10/2011,"10,348.00",
Government Equalities Office,Equality and Human Rights Commission,11/11/2011,Grant Funding Program,Corporate Managament - Grants,Slough Race Equality Council,Phase 2 Legal Grant 01/07/11,"10,425.00",
Government Equalities Office,Equality and Human Rights Commission,11/11/2011,Grant Funding Program,Corporate Management - Grants Unit,The Rape & Sexual Abuse Counselling Centre,S Grant 01/010/2011 - 31/12/2011,"10,474.20",
Government Equalities Office,Equality and Human Rights Commission,22/11/2011,Grant Funding Program,Corporate Managament - Grants,Oxford Citizens Advice Bureau,Phase 2 Legal Grant 01/07/11,"10,516.00",
Government Equalities Office,Equality and Human Rights Commission,03/11/2011,Grant Funding Program,Corporate Management - Grants Unit,Sexual Violence Alliance,S Grant 01/07/2011 - 30/09/2011,"10,815.00",
Government Equalities Office,Equality and Human Rights Commission,17/11/2011,Grant Funding Program,Corporate Management - Grants Unit,DIAL Peterborough,S Grant 01/10/2011 - 31/12/2011,"11,091.00",
Government Equalities Office,Equality and Human Rights Commission,11/11/2011,Grant Funding Program,Corporate Management - Grants Unit,Walsall Domestic Violence Forum Ltd,S Grant 01/07/2011 - 30/09/2011,"11,250.00",
Government Equalities Office,Equality and Human Rights Commission,03/11/2011,Grant Funding Program,Corporate Managament - Grants,Chesterfield Law Centre,Legal Grant 2009/2011 10%,"11,639.00",
Government Equalities Office,Equality and Human Rights Commission,30/11/2011,Grant Funding Program,Corporate Managament - Grants,Royal Association for Deaf people (RAD),Phase 2 Legal Grant 01/04/11,"11,800.94",
Government Equalities Office,Equality and Human Rights Commission,03/11/2011,Grant Funding Program,Corporate Management - Grants Unit,Families Need Fathers,S Grant 01/07/2011 - 30/09/2011,"11,812.50",
Government Equalities Office,Equality and Human Rights Commission,03/11/2011,Grant Funding Program,Corporate Managament - Grants,Cross Street Law Centre,Phase 2 Legal Grant 01/04/11,"12,500.00",
Government Equalities Office,Equality and Human Rights Commission,11/11/2011,Grant Funding Program,Corporate Managament - Grants,Central London Law Centre,Phase 2 Legal Grant 01/07/11,"12,500.00",
Government Equalities Office,Equality and Human Rights Commission,03/11/2011,Grant Funding Program,Corporate Managament - Grants,Cross Street Law Centre,Phase 2 Legal Grant 01/07/11,"12,500.00",
Government Equalities Office,Equality and Human Rights Commission,03/11/2011,Grant Funding Program,Corporate Management - Grants Unit,The Brigstowe Project,S Grant 01/07/2011 - 30/09/2011,"13,125.00",
Government Equalities Office,Equality and Human Rights Commission,17/11/2011,Grant Funding Program,Corporate Management - Grants Unit,SPAN Study Centre,S Grant 01/07/2011 - 30/09/2011,"13,541.05",
Government Equalities Office,Equality and Human Rights Commission,11/11/2011,Grant Funding Program,Corporate Management - Grants Unit,Children's Rights Alliance for England,S Grant 01/07/2011 - 30/09/2011,"13,686.31",
Government Equalities Office,Equality and Human Rights Commission,25/11/2011,Grant Funding Program,Corporate Management - Grants Unit,Migrant  and Refugee Communities Forum,Phase 2 - S Grant 01/10/2011,"13,694.40",
Government Equalities Office,Equality and Human Rights Commission,30/11/2011,Grant Funding Program,Corporate Managament - Grants,Royal Association for Deaf people (RAD),Phase 2 Legal Grant 01/07/11,"13,699.06",
Government Equalities Office,Equality and Human Rights Commission,11/11/2011,Grant Funding Program,Corporate Managament - Grants,Northamptonshire REC,Phase 2 Legal Grant 01/04/11,"13,750.00",
Government Equalities Office,Equality and Human Rights Commission,30/11/2011,Grant Funding Program,Corporate Managament - Grants,Northamptonshire REC,Phase 2 Legal Grant 01/07/11,"13,750.00",
Government Equalities Office,Equality and Human Rights Commission,11/11/2011,Grant Funding Program,Corporate Management - Grants Unit,Eclectic Productions UK Ltd.,S Grant 01/07/2011 - 30/09/2011,"14,043.43",
Government Equalities Office,Equality and Human Rights Commission,03/11/2011,Grant Funding Program,Corporate Management - Grants Unit,Cambridge Ethnic Community Forum,S Grant 01/10/2011 - 30/12/2011,"14,064.75",
Government Equalities Office,Equality and Human Rights Commission,30/11/2011,Grant Funding Program,Corporate Managament - Grants,Chesterfield Law Centre,Phase 2 Legal Grant 01/07/11,"14,373.00",
Government Equalities Office,Equality and Human Rights Commission,03/11/2011,Grant Funding Program,Corporate Management - Grants Unit,Conflict and Change,S Grant 01/07/2011 - 30/09/2011,"14,398.00",
Government Equalities Office,Equality and Human Rights Commission,22/11/2011,Grant Funding Program,Corporate Managament - Grants,Avon And Bristol Law Centre,Phase 2 Legal Grant 01/07/11,"14,500.00",
Government Equalities Office,Equality and Human Rights Commission,03/11/2011,Grant Funding Program,Corporate Management - Grants Unit,Darlington Association on Disability,S Grant 01/07/2011 - 30/09/2011,"14,829.22",
Government Equalities Office,Equality and Human Rights Commission,30/11/2011,Grant Funding Program,Corporate Managament - Grants,South West London Law Centres,Legal Grant 2009/2011 10%,"15,000.00",
Government Equalities Office,Equality and Human Rights Commission,11/11/2011,Grant Funding Program,Corporate Managament - Grants,Preston And Western Lancashire REC,Phase 2 Legal Grant 01/07/11,"15,000.00",
Government Equalities Office,Equality and Human Rights Commission,11/11/2011,Grant Funding Program,Corporate Managament - Grants,Newcastle Law Centre,Phase 2 Legal Grant 01/07/11,"15,052.00",
Government Equalities Office,Equality and Human Rights Commission,03/11/2011,Grant Funding Program,Corporate Managament - Grants,Tameside REC,Phase 2 Legal Grant 01/07/11,"15,143.50",
Government Equalities Office,Equality and Human Rights Commission,25/11/2011,Grant Funding Program,Corporate Management - Grants Unit,Stonewall Equality,Phase 2 - S Grant 01/07/2011,"15,555.36",
Government Equalities Office,Equality and Human Rights Commission,03/11/2011,Grant Funding Program,Corporate Management - Grants Unit,Human Rights & Equalities Charnwood,S Grant 01/10/2011 - 30/12/2011,"15,682.50",
Government Equalities Office,Equality and Human Rights Commission,03/11/2011,Grant Funding Program,Corporate Managament - Grants,Bradford Law Centre,Phase 2 Legal Grant 01/07/11,"16,063.16",
Government Equalities Office,Equality and Human Rights Commission,11/11/2011,Grant Funding Program,Corporate Management - Grants Unit,Coventry Rape and Sexual Abuse Centre,S Grant 01/07/2011 - 30/09/2011,"16,210.26",
Government Equalities Office,Equality and Human Rights Commission,03/11/2011,Grant Funding Program,Corporate Management - Grants Unit,Cardiff Women's Aid,S Grant 01/10/2011 - 30/12/2011,"16,774.67",
Government Equalities Office,Equality and Human Rights Commission,03/11/2011,Grant Funding Program,Corporate Management - Grants Unit,Barking and Dagenham REC,S Grant 01/10/2011 - 30/12/2011,"17,400.00",
Government Equalities Office,Equality and Human Rights Commission,11/11/2011,Grant Funding Program,Corporate Managament - Grants,Birmingham Law Centre,Phase 2 Legal Grant 01/10/11,"18,000.00",
Government Equalities Office,Equality and Human Rights Commission,17/11/2011,Grant Funding Program,Corporate Management - Grants Unit,Sheffield Methodist District,S Grant 01/07/2011 - 30/09/2011,"18,339.35",
Government Equalities Office,Equality and Human Rights Commission,03/11/2011,Grant Funding Program,Corporate Management - Grants Unit,The Lesbian & Gay Foundation (LGF),S Grant 01/07/2011 - 30/09/2011,"18,923.78",
Government Equalities Office,Equality and Human Rights Commission,03/11/2011,Grant Funding Program,Corporate Management - Grants Unit,British Institute of Human Rights,S Grant 01/10/2011 - 30/12/2011,"20,371.00",
Government Equalities Office,Equality and Human Rights Commission,11/11/2011,Grant Funding Program,Corporate Management - Grants Unit,Women in Prison,S Grant 01/010/2011 - 31/12/2011,"21,022.43",
Government Equalities Office,Equality and Human Rights Commission,17/11/2011,Grant Funding Program,Corporate Management - Grants Unit,Glasgow Disability Alliance,S Grant 01/10/2011 - 31/12/2011,"22,000.00",
Government Equalities Office,Equality and Human Rights Commission,03/11/2011,Grant Funding Program,Corporate Management - Grants Unit,JUST Lincolnshire,S Grant 01/07/2011 - 30/09/2011,"23,035.00",
Government Equalities Office,Equality and Human Rights Commission,03/11/2011,Grant Funding Program,Corporate Management - Grants Unit,JUST Lincolnshire,S Grant 01/10/2011 - 30/12/2011,"23,035.00",
Government Equalities Office,Equality and Human Rights Commission,30/11/2011,Grant Funding Program,Corporate Managament - Grants,South West London Law Centres,Phase 2 Legal Grant 01/04/11,"25,000.00",
Government Equalities Office,Equality and Human Rights Commission,30/11/2011,Grant Funding Program,Corporate Managament - Grants,South West London Law Centres,Phase 2 Legal Grant 01/07/11,"25,000.00",
Government Equalities Office,Equality and Human Rights Commission,25/11/2011,Grant Funding Program,Corporate Management - Grants Unit,Living Options Devon,Phase 2 - S Grant 01/10/2011,"26,347.95",
Government Equalities Office,Equality and Human Rights Commission,03/11/2011,Grant Funding Program,Corporate Management - Grants Unit,Derbyshire Friend,S Grant 01/10/2011 - 30/12/2011,"26,872.50",
Government Equalities Office,Equality and Human Rights Commission,22/11/2011,Health Referrals,Corporate Management - People,Road to Health Ltd,iPOS Invoice 42908,"1,017.60",
Government Equalities Office,Equality and Human Rights Commission,08/11/2011,Helpline Costs,Intelligence & Engagement - Helpline,Language Line,iPOS Invoice 42783,887.76,
Government Equalities Office,Equality and Human Rights Commission,17/11/2011,IT Hardware Maintenance Contracts,Corporate Management - ICT,Techno-Vision Systems Ltd,iPOS Invoice 42813,"4,242.00",
Government Equalities Office,Equality and Human Rights Commission,08/11/2011,IT Hardware Maintenance Contracts,Corporate Management - ICT,Danwood Contract Rentals,iPOS Invoice 42717,"6,684.74",
Government Equalities Office,Equality and Human Rights Commission,22/11/2011,Learning And Development,Intelligence & Engagement - External Affairs,Lancashire County Council,On wrong A/C S/B CLAN023,900.00,
Government Equalities Office,Equality and Human Rights Commission,22/11/2011,Learning And Development,Corporate Management - People,Positive Steps Associates Ltd,iPOS Invoice 42944,500.00,
Government Equalities Office,Equality and Human Rights Commission,08/11/2011,Learning And Development,Corporate Management - People,CIPD,iPOS Invoice 42769,520.00,
Government Equalities Office,Equality and Human Rights Commission,08/11/2011,Learning And Development,Legal - Group Director,Bond Solon,iPOS Invoice 42703,522.00,
Government Equalities Office,Equality and Human Rights Commission,30/11/2011,Learning And Development,Legal - Group Director,Bond Solon,iPOS Invoice 42978,522.00,
Government Equalities Office,Equality and Human Rights Commission,01/11/2011,Learning And Development,Legal - Group Director,The Knowledge Academy,iPOS Invoice 42632,678.00,
Government Equalities Office,Equality and Human Rights Commission,30/11/2011,Learning And Development,Corporate Management - Finance,Cima Enterprises Ltd,iPOS Invoice 43045,750.00,
Government Equalities Office,Equality and Human Rights Commission,30/11/2011,Learning And Development,Regulation - Group Director,Stt-Ubiqus (Palantype Services),iPOS Invoice 42837,866.40,
Government Equalities Office,Equality and Human Rights Commission,21/11/2011,Learning And Development,Intelligence & Engagement - External Affairs,Jayne Chambers,iPOS Invoice 42719,900.00,
Government Equalities Office,Equality and Human Rights Commission,01/11/2011,Learning And Development,Intelligence & Engagement - Stakeholder Relations,Stonewall Equality Ltd,iPOS Invoice 42642,"1,122.00",
Government Equalities Office,Equality and Human Rights Commission,22/11/2011,Learning And Development,Corporate Management - People,LMD Learning Solutions Ltd,iPOS Invoice 42941,"6,077.03",
Government Equalities Office,Equality and Human Rights Commission,08/11/2011,Library Costs,Corporate Management - Buildings,Sue Hill Recruitment & Services Ltd,iPOS Invoice 42709,"1,848.96",
Government Equalities Office,Equality and Human Rights Commission,17/11/2011,Maintenance Contracts,Corporate Management - Buildings,Docklands Handyman Limited,iPOS Invoice 42873,612.00,
Government Equalities Office,Equality and Human Rights Commission,01/11/2011,Maintenance Contracts,Corporate Management - Buildings,Secom,iPOS Invoice 42627,"1,411.36",
Government Equalities Office,Equality and Human Rights Commission,08/11/2011,Marketing,Intelligence & Engagement - External Affairs,Emailvision (UK) Ltd,iPOS Invoice 42718,953.63,
Government Equalities Office,Equality and Human Rights Commission,08/11/2011,Marketing,Intelligence & Engagement - External Affairs,CDS Leeds,iPOS Invoice 42734,"1,518.00",
Government Equalities Office,Equality and Human Rights Commission,08/11/2011,Media Monitoring,Intelligence & Engagement - External Affairs,Press Data Bureau,iPOS Invoice 42293,"3,633.85",
Government Equalities Office,Equality and Human Rights Commission,22/11/2011,Media Monitoring,Intelligence & Engagement - External Affairs,Press Data Bureau,iPOS Invoice 42701,"3,824.95",
Government Equalities Office,Equality and Human Rights Commission,01/11/2011,Media Monitoring,Intelligence & Engagement - External Affairs,The Press Association,iPOS Invoice 42690,"5,654.34",
Government Equalities Office,Equality and Human Rights Commission,01/11/2011,MFD Copy Cost,Corporate Management - ICT,The Danwood Group Ltd,iPOS Invoice 42686,"12,333.18",
Government Equalities Office,Equality and Human Rights Commission,01/11/2011,Mobile Rental & Call Charges,Corporate Management - ICT,Orange PCS Ltd,iPOS Invoice 42634,"3,678.01",
Government Equalities Office,Equality and Human Rights Commission,17/11/2011,Non-Staff Travel Expenses,Intelligence & Engagement - External Affairs,Angela Coles,iPOS Invoice 42896,759.60,
Government Equalities Office,Equality and Human Rights Commission,01/11/2011,Payroll Processing Costs,Corporate Management - Finance,Ceridian Centrefile Ltd,iPOS Invoice 42682,"2,419.61",
Government Equalities Office,Equality and Human Rights Commission,30/11/2011,Postage,Corporate Management - Buildings,Royal Mail,iPOS Invoice 42997,780.00,
Government Equalities Office,Equality and Human Rights Commission,08/11/2011,Postage,Regulation - Policy and Ops - Private,allianceHR Ltd,iPOS Invoice 42715,916.97,
Government Equalities Office,Equality and Human Rights Commission,17/11/2011,Postage,Corporate Management - Buildings,FP Teleset,iPOS Invoice 42872,"1,400.00",
Government Equalities Office,Equality and Human Rights Commission,17/11/2011,Postage,Corporate Management - Buildings,Neopost Finance Ltd,iPOS Invoice 42814,"2,000.00",
Government Equalities Office,Equality and Human Rights Commission,23/11/2011,Premises,Corporate Management - Buildings,DWP,iPOS Invoice 42963,"57,719.43",
Government Equalities Office,Equality and Human Rights Commission,01/11/2011,Premises,Corporate Management - Buildings,CK Cleaning Services (Midlands) LLP,iPOS Invoice 42645,576.00,
Government Equalities Office,Equality and Human Rights Commission,30/11/2011,Premises,Corporate Management - Buildings,DWP,iPOS Invoice 42965,"20,000.34",
Government Equalities Office,Equality and Human Rights Commission,17/11/2011,Professional Advice,Corporate Management - Buildings,Pagan Osborne Ltd,iPOS Invoice 42809,620.40,
Government Equalities Office,Equality and Human Rights Commission,22/11/2011,Professional Advice,Scotland - Director,Shirley Otto,iPOS Invoice 42937,"1,463.05",
Government Equalities Office,Equality and Human Rights Commission,30/11/2011,Professional Advice,Regulation - Policy and Ops - Public,Aileen McColgan,iPOS Invoice 42985,"2,160.00",
Government Equalities Office,Equality and Human Rights Commission,30/11/2011,Promotional Materials,Regulation - Policy and Ops - Private,Lexisnexis Butterworths Prof Edu,iPOS Invoice 42966,"1,446.00",
Government Equalities Office,Equality and Human Rights Commission,17/11/2011,Publications Corporate,Regulation - Policy and Ops - Public,Pelicanpress,iPOS Invoice 42798,"3,304.00",
Government Equalities Office,Equality and Human Rights Commission,30/11/2011,Publications Corporate,Regulation - Policy and Ops - Public,Pelicanpress,iPOS Invoice 42974,"6,414.00",
Government Equalities Office,Equality and Human Rights Commission,08/11/2011,Publications Design,Regulation - Policy and Ops - Private,Kids Connections Limited,iPOS Invoice 42761,"19,728.00",
Government Equalities Office,Equality and Human Rights Commission,30/11/2011,Publications Editing/Proof Reading,Regulation - Policy and Ops - Public,Salisbury Ward Associates,iPOS Invoice 43011,"1,776.00",
Government Equalities Office,Equality and Human Rights Commission,17/11/2011,Publications Editing/Proof Reading,Legal/Monitoring - Enforcement,Textmill,iPOS Invoice 42820,"1,920.00",
Government Equalities Office,Equality and Human Rights Commission,22/11/2011,Publications Editing/Proof Reading,Regulation - Policy and Ops - Public,Salisbury Ward Associates,iPOS Invoice 42926,"3,600.00",
Government Equalities Office,Equality and Human Rights Commission,01/11/2011,Publications Printing,Statutory Committee - Wales,Pelicanpress,iPOS Invoice 42643,"1,391.00",
Government Equalities Office,Equality and Human Rights Commission,17/11/2011,Publications Storage Costs,Intelligence & Engagement - External Affairs,Sitel UK Ltd,iPOS Invoice 42844,"4,943.93",
Government Equalities Office,Equality and Human Rights Commission,01/11/2011,Publications Storage Costs,Intelligence & Engagement - External Affairs,Sitel UK Ltd,iPOS Invoice 42640,"8,043.45",
Government Equalities Office,Equality and Human Rights Commission,17/11/2011,Publications Storage Costs,Intelligence & Engagement - External Affairs,Sitel UK Ltd,iPOS Invoice 42843,"9,757.10",
Government Equalities Office,Equality and Human Rights Commission,17/11/2011,Publications Translation,Scotland - Director,Remark,iPOS Invoice 42806,"1,574.64",
Government Equalities Office,Equality and Human Rights Commission,17/11/2011,Publications Translation,Statutory Committee - Wales,The Big Word,iPOS Invoice 42811,"7,935.28",
Government Equalities Office,Equality and Human Rights Commission,17/11/2011,Records Storage Costs,Corporate Management - Information Management,Iron Mountain (UK) Ltd,iPOS Invoice 42866,"2,807.60",
Government Equalities Office,Equality and Human Rights Commission,08/11/2011,Rent,Corporate Management - Buildings,Mwb Business Exchange Centres,iPOS Invoice 42750,"2,076.00",
Government Equalities Office,Equality and Human Rights Commission,22/11/2011,Rent,Corporate Management - Buildings,AMAS Ltd,iPOS Invoice 42959,"243,845.70",
Government Equalities Office,Equality and Human Rights Commission,17/11/2011,Research,Regulation - Disability Programme,Lancaster University,iPOS Invoice 42807,"6,572.00",
Government Equalities Office,Equality and Human Rights Commission,23/11/2011,Research,Regulation - Policy and Ops - Public,AP Benson Limited,iPOS Invoice 42942,"12,210.00",
Government Equalities Office,Equality and Human Rights Commission,30/11/2011,Researchers Fees,Legal - Human Rights,British Institute Of Human Rights,iPOS Invoice 43009,"2,760.00",
Government Equalities Office,Equality and Human Rights Commission,01/11/2011,Researchers Fees,Statutory Committee - Scotland,EKOS Limited,iPOS Invoice 42628,"5,000.00",
Government Equalities Office,Equality and Human Rights Commission,30/11/2011,Researchers Fees,Regulation - Research,Independent Social Research Ltd,iPOS Invoice 42992,"12,369.60",
Government Equalities Office,Equality and Human Rights Commission,17/11/2011,Seconded Staff,Scotland - Director,Glasgow Centre for Inclusive Living,iPOS Invoice 42817,"2,662.67",
Government Equalities Office,Equality and Human Rights Commission,08/11/2011,Seconded Staff,Corporate Management - People,Northwest Development Agency (NWDA),iPOS Invoice 42631,"13,003.52",
Government Equalities Office,Equality and Human Rights Commission,01/11/2011,Security,Corporate Management - Buildings,Key Control Services Ltd,iPOS Invoice 42639,756.00,
Government Equalities Office,Equality and Human Rights Commission,01/11/2011,Security,Corporate Management - Buildings,Banner Business Supplies Ltd,A-23647582,"1,887.66",
Government Equalities Office,Equality and Human Rights Commission,30/11/2011,Security,Corporate Management - Buildings,Banner Business Supplies Ltd,A-23754230,"2,459.16",
Government Equalities Office,Equality and Human Rights Commission,17/11/2011,Service Charge,Corporate Management - Buildings,DWP,iPOS Invoice 42962,"8,204.22",
Government Equalities Office,Equality and Human Rights Commission,08/11/2011,Service Charge,Corporate Management - Buildings,DWP,iPOS Invoice 42964,"8,204.22",
Government Equalities Office,Equality and Human Rights Commission,17/11/2011,Settlement Costs,Legal/Monitoring - Casework,Imperial College Healthcare NHS Trust,iPOS Invoice 42823,"15,000.00",
Government Equalities Office,Equality and Human Rights Commission,22/11/2011,Solicitors Fees,Legal/Monitoring - Casework,Leigh Day & Co,iPOS Invoice 42927,"8,217.11",
Government Equalities Office,Equality and Human Rights Commission,30/11/2011,Solicitors Fees,Legal/Monitoring - Casework,Leigh Day & Co,iPOS Invoice 43010,"35,356.01",
Government Equalities Office,Equality and Human Rights Commission,30/11/2011,Sponsored Study,Wales Director,Business Psychology Wales Ltd,iPOS Invoice 43021,975.00,
Government Equalities Office,Equality and Human Rights Commission,08/11/2011,Travel,Corporate Management - Finance,Carlson Wagonlit Travel,CWT Upload - 11/11/2011,"7,424.99",
Government Equalities Office,Equality and Human Rights Commission,22/11/2011,Travel,Corporate Management - Finance,Carlson Wagonlit Travel,CWT Upload - 28/10/2011,"5,315.57",
Government Equalities Office,Equality and Human Rights Commission,22/11/2011,Travel,Corporate Management - Finance,Carlson Wagonlit Travel,CWT Upload - 18/11/2011,"5,689.18",
Government Equalities Office,Equality and Human Rights Commission,08/11/2011,Travel,Corporate Management - Finance,Carlson Wagonlit Travel,CWT Upload - 21/10/2011,"5,989.36",
Government Equalities Office,Equality and Human Rights Commission,08/11/2011,Travel,Corporate Management - Finance,Carlson Wagonlit Travel,CWT Upload - 14/11/2011,"8,884.77",
Government Equalities Office,Equality and Human Rights Commission,08/11/2011,WAN Expenditure,Corporate Management - ICT,BT Global Services,iPOS Invoice 42700,"43,954.69",
Government Equalities Office,Equality and Human Rights Commission,08/11/2011,Water Coolers,Corporate Management - Buildings,Avital Water Ltd,iPOS Invoice 42776,568.20,
,,,,,,,"2,145,640.96",
